[Event "32nd NATO Championship 2022"]
[Site "Tartu"]
[Date "2022.06.29"]
[Round "4.31"]
[White "Coulon, Dominic"]
[Black "Kocur, Marc"]
[Result "0-1"]
[ECO "A40"]
[WhiteElo "1701"]
[BlackElo "1829"]
[Annotator "NA RC"]
[PlyCount "94"]
[EventDate "2022.06.27"]
[EventType "swiss"]
[EventCountry "EST"]
[SourceTitle "playchess.com"]
[Source "ChessBase"]
[SourceQuality "1"]
[TimeControl "5400+30"]

1. d4 {[%emt 0:00:05]} Nc6 {[%emt 0:00:44]} 2. e4 {[%emt 0:00:30]} e5 {[%emt 0:00:13]} 3. d5 {[%emt 0:01:28]} Nce7 {[%emt 0:00:10]} 4. c4 {[%emt 0:05:03]} Ng6 {[%emt 0:00:30]} 5. Nc3 {[%emt 0:02:20]} Bb4 {[%emt 0:00:41]} 6. Nge2 {[%emt 0:02:26]} Nf6 {[%emt 0:00:50]} 7. f3 {[%emt 0:01:44]} O-O {[%emt 0:03:56]} 8. Be3 {[%emt 0:00:31]} d6 {[%emt 0:08:36]} 9. Qc2 {[%emt 0:07:33]} a6 {[%emt 0:12:48]} (9... Nd7 $11 {is more appropriate.}) 10. g3 {[%emt 0:04:38]} Bd7 {[%emt 0:05:08]} (10... c6 $11) 11. Nc1 {[%emt 0:03:34]} (11. a3 $14 {deserves consideration.} Bc5 12. Bxc5 dxc5 13. b3) 11... Bc5 {[%emt 0:01:29]} (11... c6 $11) 12. Bg5 {[%emt 0:01:35]} (12. Bxc5 $16 dxc5 13. Nd3) 12... h6 {[%emt 0:00:23]} 13. Bd2 {[%emt 0:00:06]} Qe8 {[%emt 0:10:40]} 14. Nd3 {[%emt 0:00:46]} (14. Nb3 $5 {[%cal Rb3c5]}) 14... Ba7 $1 {[%emt 0:00:59]} 15. Bg2 {[%emt 0:07:28]} c6 {[%emt 0:06:03]} ({Black should try} 15... b5 $15) 16. Ke2 {[%emt 0:07:53]} Nh5 {[%emt 0:04:36]} 17. Raf1 {[%emt 0:03:46]} (17. dxc6 $15 bxc6 18. c5) 17... f5 {[%emt 0:02:33]} 18. Kd1 {[%emt 0:01:58]} Nf6 {[%emt 0:01:39]} (18... cxd5 $17 19. cxd5 (19. Nxd5 Rc8 $17) 19... Rc8) 19. h4 {[%emt 0:01:55] [#]} Nh5 {[%emt 0:02:49]} (19... cxd5 $1 $19 20. cxd5 Bd4) 20. Be1 {[%emt 0:00:43]} Qe7 {[%emt 0:02:42]} 21. Qe2 {[%emt 0:04:43]} (21. Kc1 $17 {was necessary.}) 21... f4 {[%emt 0:01:29]} 22. g4 {[%emt 0:03:15]} Ng3 {[%emt 0:00:06]} 23. Bxg3 {[%emt 0:00:11]} fxg3 {[%emt 0:00:04]} 24. h5 {[%emt 0:01:20]} Nf4 {[%emt 0:00:07]} 25. Nxf4 {[%emt 0:00:40]} exf4 {[%emt 0:00:27]} 26. Kc2 {[%emt 0:04:55]} b5 {[%emt 0:02:04]} 27. Rd1 {[%emt 0:02:10]} b4 {[%emt 0:00:24]} ({Black should try} 27... Qe5 $19 28. dxc6 Bxc6) 28. dxc6 {[%emt 0:06:30]} bxc3 {[%emt 0:00:23]} 29. cxd7 {[%emt 0:00:26]} cxb2 {[%emt 0:00:56]} 30. Rd5 {[%emt 0:01:00]} Qxd7 {[%emt 0:03:10]} 31. Qd3 {[%emt 0:00:26]} (31. Kb1 $17) 31... Bc5 {[%emt 0:08:28]} 32. Kb1 {[%emt 0:00:41]} Qe7 {[%emt 0:04:59]} ({Black should play} 32... Qc7 33. g5 Rae8 34. gxh6 gxh6) 33. Re1 {[%emt 0:02:07]} Rab8 $17 {[%emt 0:04:51]} 34. Re2 {[%emt 0:00:47]} Rb6 {[%emt 0:00:28]} 35. e5 {[%emt 0:03:41]} Qc7 {[%emt 0:03:11]} 36. e6 {[%emt 0:01:55]} Qe7 {[%emt 0:00:08]} 37. Rf5 {[%emt 0:01:55]} Rxf5 {[%emt 0:00:33]} 38. Qxf5 {[%emt 0:00:29]} Be3 {[%emt 0:00:14]} 39. Qd5 {[%emt 0:01:17]} Kh8 {[%emt 0:00:26]} 40. Rc2 {[%emt 0:03:58]} Rb8 {[%emt 0:00:51]} 41. Bf1 {[%emt 0:00:23]} Re8 {[%emt 0:00:28]} 42. Rxb2 {[%emt 0:01:06]} Qh4 {[%emt 0:02:04]} 43. Qc6 {[%emt 0:02:47]} Rg8 {[%emt 0:00:08]} 44. Bd3 {[%emt 0:02:43]} Qh1+ {[%emt 0:00:09]} 45. Kc2 {[%emt 0:00:13]} Qc1+ {[%emt 0:00:19]} 46. Kb3 {[%emt 0:04:20]} Rb8+ {[%emt 0:00:35]} 47. Ka4 {[%emt 0:00:03]} Qxb2 {[%emt 0:00:11]} 0-1

[Event "32nd NATO Championship 2022"]
[Site "Tartu"]
[Date "2022.06.29"]
[Round "4.32"]
[White "Steen, Kris"]
[Black "Ivbulis, Martins"]
[Result "1/2-1/2"]
[ECO "A17"]
[WhiteElo "1735"]
[BlackElo "1815"]
[Annotator "NA RC"]
[PlyCount "50"]
[EventDate "2022.06.27"]
[EventType "swiss"]
[EventCountry "EST"]
[SourceTitle "playchess.com"]
[Source "ChessBase"]
[SourceQuality "1"]
[TimeControl "5400+30"]

1. c4 {[%emt 0:00:04]} e6 {[%emt 0:00:11]} 2. Nc3 {[%emt 0:00:30]} d5 {[%emt 0:00:30]} 3. g3 {[%emt 0:00:30]} Nf6 {[%emt 0:00:30]} 4. Bg2 {[%emt 0:00:30]} a6 {[%emt 0:00:30]} 5. e3 {[%emt 0:00:30]} dxc4 {[%emt 0:00:30]} 6. Qa4+ {[%emt 0:00:30]} Bd7 {[%emt 0:00:30]} 7. Qxc4 {[%emt 0:00:30]} Bc6 {[%emt 0:00:30]} 8. Nf3 {[%emt 0:00:30]} Be7 {[%emt 0:00:30]} 9. O-O {[%emt 0:00:30]} O-O {[%emt 0:00:30]} 10. d4 {[%emt 0:00:30]} b5 {[%emt 0:00:30]} 11. Qb3 {[%emt 0:00:30]} Qc8 {[%emt 0:00:30]} 12. Bd2 $15 {[%emt 0:00:30]} (12. Qd1 $11) 12... Qb7 {[%emt 0:00:30]} 13. Nh4 {[%emt 0:00:30]} Bxg2 {[%emt 0:00:30]} 14. Nxg2 {[%emt 0:00:30]} Nbd7 {[%emt 0:00:30]} 15. Rac1 {[%emt 0:00:30]} c5 {[%emt 0:00:30]} 16. dxc5 {[%emt 0:00:30]} Nxc5 {[%emt 0:00:30]} 17. Qd1 {[%emt 0:00:30]} Rfd8 {[%emt 0:00:30]} 18. Qe2 {[%emt 0:00:30]} b4 {[%emt 0:00:30]} 19. Nb1 {[%emt 0:00:30]} Rac8 {[%emt 0:00:30]} 20. b3 {[%emt 0:00:30]} h6 {[%emt 0:00:30]} 21. Rfd1 {[%emt 0:00:30]} Nfe4 {[%emt 0:00:30]} 22. Be1 {[%emt 0:00:30]} Ng5 {[%emt 0:00:30]} 23. Rc4 {[%emt 0:00:30]} Rxd1 {[%emt 0:00:30]} 24. Qxd1 {[%emt 0:00:30]} Rd8 {[%emt 0:00:30]} 25. Qg4 {[%emt 0:00:30]} Nd3 {[%emt 0:00:30]} 1/2-1/2

[Event "32nd NATO Championship 2022"]
[Site "Tartu"]
[Date "2022.06.29"]
[Round "4.34"]
[White "Allmann, Lauri"]
[Black "Stuhr, Finn"]
[Result "0-1"]
[ECO "A30"]
[WhiteElo "1804"]
[BlackElo "1667"]
[Annotator "NA RC"]
[PlyCount "148"]
[EventDate "2022.06.27"]
[EventType "swiss"]
[EventCountry "EST"]
[SourceTitle "playchess.com"]
[Source "ChessBase"]
[SourceQuality "1"]
[TimeControl "5400+30"]

1. c4 {[%emt 0:00:10]} c5 {[%emt 0:00:34]} 2. Nc3 {[%emt 0:00:45]} Nf6 {[%emt 0:00:33]} 3. g3 {[%emt 0:00:28]} g6 {[%emt 0:00:21]} 4. Bg2 {[%emt 0:00:18]} Bg7 {[%emt 0:00:06]} 5. Nf3 {[%emt 0:00:26]} Nc6 {[%emt 0:00:20]} 6. O-O {[%emt 0:00:20]} b6 {[%emt 0:00:14]} 7. d4 {[%emt 0:04:12]} cxd4 {[%emt 0:00:19]} 8. Nxd4 {[%emt 0:00:28]} Bb7 {[%emt 0:00:08]} 9. e3 {[%emt 0:10:07]} Na5 {[%emt 0:03:05]} 10. b3 {[%emt 0:04:34]} Bxg2 {[%emt 0:00:21]} 11. Kxg2 {[%emt 0:00:06]} O-O {[%emt 0:00:33]} 12. Ba3 {[%emt 0:02:09]} d6 {[%emt 0:04:02]} 13. Qf3 {[%emt 0:01:26]} Qd7 {[%emt 0:02:34]} 14. Rfd1 {[%emt 0:04:11]} Rac8 {[%emt 0:00:21]} 15. Rac1 {[%emt 0:02:52]} Qb7 {[%emt 0:02:39]} 16. Rd2 {[%emt 0:10:44]} Qxf3+ {[%emt 0:00:59]} 17. Kxf3 {[%emt 0:01:59]} a6 {[%emt 0:00:40]} 18. Na4 {[%emt 0:04:09]} Nd7 {[%emt 0:00:34]} 19. Nc3 {[%emt 0:04:15]} Nc6 {[%emt 0:00:54]} 20. Nd5 {[%emt 0:03:40]} Rfe8 {[%emt 0:02:33]} 21. Bb2 {[%emt 0:07:37]} Nce5+ {[%emt 0:01:15]} 22. Ke2 {[%emt 0:00:50]} e6 {[%emt 0:00:38]} 23. Nf4 {[%emt 0:02:26]} (23. Nc3 $142) 23... Nc5 {[%emt 0:02:45]} 24. f3 {[%emt 0:01:34]} Ned7 {[%emt 0:00:36]} 25. Nd3 {[%emt 0:04:18]} (25. Nh3 $11 {should be considered.}) 25... Nxd3 {[%emt 0:01:10]} 26. Kxd3 {[%emt 0:02:19]} e5 {[%emt 0:05:37]} 27. Ne2 {[%emt 0:00:49]} e4+ {[%emt 0:00:17]} 28. fxe4 {[%emt 0:01:08]} Nc5+ {[%emt 0:00:25]} 29. Kc2 {[%emt 0:00:11]} Bxb2 {[%emt 1:10:27]} ({Black should play} 29... Nxe4 $15 30. Rd5 b5) 30. Kxb2 {[%emt 0:26:59]} Rxe4 {[%emt 0:00:00]} 31. Rxd6 {[%emt 0:00:00]} Rxe3 {[%emt 0:01:00]} 32. Rc2 {[%emt 0:01:00]} b5 {[%emt 0:00:00]} (32... Nd3+ $11 33. Kb1 Ne1) 33. cxb5 {[%emt 0:00:00]} axb5 {[%emt 0:00:00]} 34. Rd5 {[%emt 0:00:00]} Na4+ {[%emt 0:00:00]} 35. bxa4 {[%emt 0:00:00]} Rxc2+ {[%emt 0:00:00]} 36. Kxc2 {[%emt 0:00:00]} Rxe2+ {[%emt 0:00:00]} 37. Rd2 {[%emt 0:00:00]} Rxd2+ {[%emt 0:00:00]} 38. Kxd2 {[%emt 0:00:00]} bxa4 {[%emt 0:00:00]} 39. Kc3 {[%emt 0:00:00]} f5 {[%emt 0:00:00]} 40. Kb4 {[%emt 0:00:00]} g5 {[%emt 0:00:00]} 41. Kc5 {[%emt 0:00:00]} Kf7 {[%emt 0:00:00]} 42. Kd5 {[%emt 0:00:00]} Kf6 {[%emt 0:00:00]} 43. h3 {[%emt 0:00:00]} a3 {[%emt 0:00:00]} 44. g4 {[%emt 0:00:00]} f4 {[%emt 0:00:00]} 45. Ke4 {[%emt 0:00:00]} Ke6 {[%emt 0:00:00]} 46. h4 {[%emt 0:00:00]} gxh4 {[%emt 0:00:00]} 47. Kxf4 {[%emt 0:00:00]} Kd5 {[%emt 0:00:00]} 48. g5 {[%emt 0:00:00]} Kd4 {[%emt 0:00:00]} 49. Kg4 {[%emt 0:00:00]} Kc3 {[%emt 0:00:00]} 50. Kxh4 {[%emt 0:00:00]} Kb2 {[%emt 0:00:00]} 51. Kh5 {[%emt 0:00:01]} Kxa2 {[%emt 0:00:00]} 52. Kh6 {[%emt 0:00:05]} Kb2 {[%emt 0:00:00]} 53. Kxh7 {[%emt 0:00:19]} a2 {[%emt 0:00:00]} 54. g6 {[%emt 0:00:10]} a1=Q {[%emt 0:00:00]} 55. g7 {[%emt 0:00:24]} Qh1+ {[%emt 0:12:00]} 56. Kg6 {[%emt 0:11:01]} Qd5 {[%emt 0:00:00]} 57. Kh7 {[%emt 0:00:00]} Qh5+ {[%emt 0:00:00]} 58. Kg8 {[%emt 0:00:00]} Kc3 {[%emt 0:00:00]} 59. Kf8 {[%emt 0:00:00]} Qf5+ {[%emt 0:00:00]} 60. Ke7 {[%emt 0:00:00]} Qg6 {[%emt 0:00:00]} 61. Kf8 {[%emt 0:00:00]} Qf6+ {[%emt 0:00:00]} 62. Kg8 {[%emt 0:00:00]} Kd4 {[%emt 0:00:00]} 63. Kh7 {[%emt 0:00:00]} Qf5+ {[%emt 0:00:00]} 64. Kh6 {[%emt 0:00:00]} Qg4 {[%emt 0:00:00]} 65. Kh7 {[%emt 0:00:00]} Qh5+ {[%emt 0:00:00]} 66. Kg8 {[%emt 0:00:00]} Ke5 {[%emt 0:00:00]} 67. Kf8 {[%emt 0:00:00]} Qf5+ {[%emt 0:00:00]} 68. Ke8 {[%emt 0:00:00]} Qg6+ {[%emt 0:06:30]} 69. Kf8 {[%emt 0:06:30]} Qf6+ {[%emt 0:00:00]} 70. Kg8 {[%emt 0:00:00]} Ke6 {[%emt 0:00:00]} 71. Kh7 {[%emt 0:00:00]} Qh4+ {[%emt 0:00:00]} 72. Kg8 Qg5 {[%emt 0:02:00]} 73. Kh7 {[%emt 0:00:00]} Kf7 {[%emt 0:00:00]} 74. g8=B+ {[%emt 0:00:00]} Qxg8+ {[%emt 0:01:00]} 0-1

[Event "32nd NATO Championship 2022"]
[Site "Tartu"]
[Date "2022.06.29"]
[Round "4.41"]
[White "Ross, David C"]
[Black "Csizmadia, Csaba"]
[Result "1-0"]
[ECO "B40"]
[WhiteElo "1677"]
[BlackElo "1875"]
[Annotator "NA RC"]
[PlyCount "75"]
[EventDate "2022.06.27"]
[EventType "swiss"]
[EventCountry "EST"]
[SourceTitle "playchess.com"]
[Source "ChessBase"]
[SourceQuality "1"]
[TimeControl "5400+30"]

{[%evp 8,75,12,32767,32767,32767,32767,32767,32767,32767,32767,32767,32767,32767,32767,32767,71,67,32767,20,23,17,33,19,20,0,0,0,0,0,23,-19,5,-19,-8,32767,-47,32767,32767,-131,-138,32767,32767,32767,32767,-297,-256,-341,0,0,0,0,32767,32767,32767,228,32767,814,29987,29985,32767,267,29986,29973,29971,29975,29987,29988,29988,29989]} 1. e4 {[%emt 0:00:07]} c5 {[%emt 0:00:05]} 2. Nf3 {[%emt 0:01:05]} e6 {[%emt 0:00:06]} 3. Bd3 {[%emt 0:00:15]} Nc6 {[%emt 0:00:26]} 4. c3 {[%emt 0:00:11]} g6 {[%emt 0:00:20]} 5. Bc2 {[%emt 0:00:25]} Bg7 {[%emt 0:01:18]} 6. d4 {[%emt 0:03:23]} cxd4 {[%emt 0:00:34]} 7. cxd4 {[%emt 0:00:07]} d5 {[%emt 0:02:44]} 8. e5 {[%emt 0:01:23]} Qb6 {[%emt 0:00:13]} 9. Nc3 {[%emt 0:03:06]} Nge7 {[%emt 0:03:18]} 10. O-O {[%emt 0:04:53]} Bd7 {[%emt 0:01:44]} 11. a3 {[%emt 0:12:57]} Na5 {[%emt 0:07:36]} (11... O-O $14) 12. Rb1 {[%emt 0:05:11]} Rc8 {[%emt 0:00:56]} 13. Na4 {[%emt 0:06:53]} (13. h4 $14) 13... Bxa4 {[%emt 0:03:23]} 14. Bxa4+ {[%emt 0:01:02]} Nac6 {[%emt 0:00:15]} 15. Bf4 {[%emt 0:06:03]} O-O {[%emt 0:00:26]} 16. Qd2 {[%emt 0:01:49]} Nf5 {[%emt 0:00:34]} 17. Bxc6 {[%emt 0:00:46]} Rxc6 {[%emt 0:00:22]} 18. g4 {[%emt 0:00:42]} Ne7 {[%emt 1:15:10]} 19. Bh6 {[%emt 0:49:42]} Rfc8 {[%emt 0:00:00]} 20. Bxg7 {[%emt 0:00:00]} Kxg7 {[%emt 0:00:00]} 21. Rbc1 {[%emt 0:00:00] [#]} Qb3 $1 {[%emt 0:00:00]} 22. Rxc6 {[%emt 0:00:00]} Rxc6 {[%emt 0:00:00]} 23. Qf4 {[%emt 0:00:00]} Ng8 {[%emt 0:00:00]} 24. Ng5 {[%emt 0:00:00]} Rc7 {[%emt 0:00:00]} 25. h4 {[%emt 0:00:00]} h6 {[%emt 0:00:00]} 26. Nf3 {[%emt 0:00:00]} Qxb2 {[%emt 0:00:00]} 27. h5 {[%emt 0:00:00]} Qxa3 $2 {[%emt 0:00:00]} ({Black should play} 27... g5 $19 28. Qd2 Qxa3) 28. g5 $1 {[%emt 0:00:00]} Qe7 {[%emt 0:00:00]} 29. Kg2 {[%emt 0:00:00]} hxg5 {[%emt 0:00:00]} 30. Nxg5 {[%emt 0:00:00]} Nh6 {[%emt 0:00:00]} 31. Rh1 {[%emt 0:00:00]} Nf5 {[%emt 0:00:00]} 32. hxg6 {[%emt 0:00:00]} Kxg6 {[%emt 0:00:00]} 33. Nf3 {[%emt 0:02:38]} f6 {[%emt 0:00:00]} 34. Qg4+ {[%emt 0:00:43]} Kf7 {[%emt 0:00:00]} 35. Rh7+ {[%emt 0:00:24]} Ke8 {[%emt 0:00:00]} 36. Rxe7+ {[%emt 0:01:15]} Rxe7 {[%emt 0:00:00]} 37. exf6 {[%emt 0:01:12]} Rf7 {[%emt 0:00:00]} 38. Qg8+ {[%emt 0:00:39]} 1-0

[Event "32nd NATO Championship 2022"]
[Site "Tartu"]
[Date "2022.06.29"]
[Round "4.42"]
[White "Korge, Kersti"]
[Black "Boudry, Rik"]
[Result "0-1"]
[ECO "A00"]
[WhiteElo "1864"]
[BlackElo "1464"]
[Annotator "NA RC"]
[PlyCount "36"]
[EventDate "2022.06.27"]
[EventType "swiss"]
[EventCountry "EST"]
[SourceTitle "playchess.com"]
[Source "ChessBase"]
[SourceQuality "1"]
[TimeControl "5400+30"]

{[%evp 20,36,29,27,32767,21,32767,0,36,32767,81,66,131,132,383,-104,-91,-1385,-1421]} 1. b4 {[%emt 0:00:03]} e5 {[%emt 0:04:44]} 2. Bb2 {[%emt 0:00:05]} Bxb4 {[%emt 0:00:41]} 3. Bxe5 {[%emt 0:00:07]} Nf6 {[%emt 0:00:31]} 4. c4 {[%emt 0:00:23]} Nc6 {[%emt 0:00:24]} 5. Bb2 {[%emt 0:00:09]} d6 {[%emt 0:01:16]} 6. e3 {[%emt 0:00:14]} O-O {[%emt 1:25:54]} 7. Nf3 {[%emt 1:32:59]} Be6 {[%emt 0:00:00]} 8. Be2 {[%emt 0:00:00]} Re8 {[%emt 0:00:00]} 9. O-O {[%emt 0:00:00]} a6 {[%emt 0:00:00]} 10. d4 {[%emt 0:00:00]} Bg4 {[%emt 0:00:00]} 11. Qb3 {[%emt 0:00:00]} Ba5 {[%emt 0:00:00]} 12. Nc3 {[%emt 0:00:00]} Rb8 {[%emt 0:00:00]} 13. c5 {[%emt 0:00:00]} Na7 {[%emt 0:00:00]} (13... dxc5 $11 14. dxc5 Qe7) 14. Ng5 {[%emt 0:00:00]} d5 {[%emt 0:00:00]} ({Less strong is} 14... Bxc3 15. Nxf7 Qe7 16. Nh6+ Kh8 17. Nxg4 Bxb2 18. cxd6 (18. Qxb2 dxc5 19. Nxf6 Qxf6 $16) 18... Qxd6 19. Qxb2 $16) (14... Qd7 $11 {remains equal.}) 15. Bxg4 {[%emt 0:00:00]} Nxg4 {[%emt 0:00:00]} (15... Bxc3 $14 16. Bxc3 Nxg4) 16. Qxd5 {[%emt 0:00:00]} Re7 $2 {[%emt 0:00:00]} (16... Qxd5 $16 {was necessary.} 17. Nxd5 c6) 17. Nxh7 $2 {[%emt 0:00:00]} Bxc3 {[%emt 0:00:00]} 18. Bxc3 $19 {[%emt 0:00:00]} Qxd5 {[%emt 0:00:00]} 0-1

[Event "32nd NATO Championship 2022"]
[Site "Tartu"]
[Date "2022.06.29"]
[Round "4.43"]
[White "Ntalampiras, Spyros"]
[Black "Steffers, Hendrik"]
[Result "1-0"]
[ECO "B42"]
[WhiteElo "1815"]
[BlackElo "1856"]
[Annotator "NA RC"]
[PlyCount "57"]
[EventDate "2022.06.27"]
[EventType "swiss"]
[EventCountry "EST"]
[SourceTitle "playchess.com"]
[Source "ChessBase"]
[SourceQuality "1"]
[TimeControl "5400+30"]

{[%evp 10,54,37,32767,32767,32767,32767,32767,32767,32767,32767,32767,32767,32767,32767,32767,32767,106,90,43,168,134,32767,52,272,206,188,197,32767,619,598,0,505,32767,32767,3334,29987,29988,29981,32767,32767,32767,32767,32767,32767,29991,29998]} 1. e4 {[%emt 0:00:06]} c5 {[%emt 0:00:14]} 2. Nf3 {[%emt 0:00:05]} e6 {[%emt 0:00:19]} 3. d4 {[%emt 0:00:06]} cxd4 {[%emt 0:00:07]} 4. Nxd4 {[%emt 0:00:04]} a6 {[%emt 0:00:08]} 5. Bd3 {[%emt 0:00:16]} Nf6 {[%emt 0:00:40]} 6. Qe2 {[%emt 0:01:06]} d6 {[%emt 0:01:19]} 7. O-O {[%emt 0:00:50]} Qc7 {[%emt 0:01:03]} 8. c4 {[%emt 0:00:55]} Be7 {[%emt 0:02:33]} 9. Nc3 {[%emt 0:03:36]} O-O {[%emt 0:00:25] 9...Nbd7 might become the main line.} 10. f4 {[%emt 0:00:13]} Nc6 {[%emt 0:03:25]} 11. Nxc6 {[%emt 0:03:57]} bxc6 {[%emt 0:01:04]} 12. Be3 {[%emt 0:00:57] [#]} h5 $146 {[%emt 0:14:56]} ({Predecessor:} 12... Rb8 13. Kh1 Qa5 14. a3 e5 15. b4 Qc7 16. f5 Bb7 17. Rac1 Qd8 18. Rcd1 a5 {0-1 (54) Srimathi,R (1914)-Bauyrzhan,A (2075) New Delhi 2019}) 13. h3 {[%emt 0:06:55]} Bb7 {[%emt 0:04:09]} 14. g4 {[%emt 0:08:23]} (14. Rad1 $16) 14... hxg4 {[%emt 0:02:54]} (14... d5 $1 $14) 15. hxg4 {[%emt 0:01:48]} g6 {[%emt 0:00:33]} 16. Rf2 {[%emt 0:12:36]} (16. g5 $16 Nh5 17. Qh2) 16... Kg7 $2 {[%emt 0:00:55]} (16... d5 $16 {was worth a try.}) 17. Raf1 {[%emt 0:02:08]} Rh8 {[%emt 0:04:01]} 18. g5 {[%emt 0:01:24]} Nd7 {[%emt 0:02:32]} 19. Bd4+ {[%emt 0:05:07]} f6 {[%emt 0:00:55]} 20. Qg4 $2 {[%emt 0:06:23]} (20. e5 $18 c5 21. exf6+ Bxf6 22. gxf6+ Nxf6 23. Bxf6+ Kxf6 {[#]} 24. Nd5+ $1 {[%mdl 512]} Bxd5 25. cxd5) 20... Kf7 $2 {[%emt 0:05:51]} (20... c5 $1 $11 {and Black stays safe.} 21. Qxe6 Rae8) 21. gxf6 {[%emt 0:08:10]} e5 {[%emt 0:08:09]} 22. fxe5 {[%emt 0:01:18]} dxe5 {[%emt 0:03:06]} 23. fxe7+ {[%emt 0:00:37]} Kxe7 {[%emt 0:00:24]} 24. Rf7+ {[%emt 0:03:16]} Kd8 {[%emt 0:00:01]} 25. Be3 {[%emt 0:04:10]} Qd6 {[%emt 0:00:28]} 26. Rd1 {[%emt 0:02:05]} Bc8 {[%emt 0:05:04]} 27. Bc2 {[%emt 0:01:29]} Qc7 {[%emt 0:00:15]} 28. Bg5+ {[%emt 0:00:22]} Ke8 {[%emt 0:00:11]} 29. Qe6# {[%emt 0:26:38]} 1-0

[Event "32nd NATO Championship 2022"]
[Site "Tartu"]
[Date "2022.06.29"]
[Round "4.45"]
[White "Echavarria Hidalgo, Fernando"]
[Black "Jansen, Lyle John"]
[Result "1-0"]
[ECO "C41"]
[WhiteElo "1749"]
[BlackElo "1470"]
[Annotator "NA RC"]
[PlyCount "89"]
[EventDate "2022.06.27"]
[EventType "swiss"]
[EventCountry "EST"]
[SourceTitle "playchess.com"]
[Source "ChessBase"]
[SourceQuality "1"]
[TimeControl "5400+30"]

1. e4 {[%emt 0:00:03]} e5 {[%emt 0:00:46]} 2. Nf3 {[%emt 0:00:08]} d6 {[%emt 0:00:26]} 3. d4 {[%emt 0:00:25]} exd4 {[%emt 0:04:19]} 4. Nxd4 {[%emt 0:01:23]} Nf6 {[%emt 0:02:32]} 5. Nc3 {[%emt 0:00:16]} g6 {[%emt 0:01:01]} 6. Bg5 {[%emt 0:01:38]} c6 {[%emt 0:04:23]} 7. Qd2 {[%emt 0:02:04]} Bg7 {[%emt 0:00:39]} 8. Bh6 {[%emt 0:01:57]} O-O {[%emt 0:00:44]} 9. Bxg7 {[%emt 0:00:35]} Kxg7 {[%emt 0:00:12]} 10. O-O-O {[%emt 0:00:27]} b5 {[%emt 0:00:38]} 11. f3 {[%emt 0:00:52]} Bd7 {[%emt 0:05:44]} 12. g4 {[%emt 0:01:29]} b4 {[%emt 0:03:06]} 13. Nce2 {[%emt 0:00:57]} c5 {[%emt 0:01:45]} 14. Nb3 {[%emt 0:00:14]} Be6 {[%emt 0:01:21]} 15. Qxd6 {[%emt 0:01:42]} Qxd6 {[%emt 0:01:14]} 16. Rxd6 {[%emt 0:00:07]} Bxb3 {[%emt 0:01:19]} 17. axb3 {[%emt 0:01:05]} a5 {[%emt 0:02:34]} 18. Nf4 {[%emt 0:02:34]} h6 {[%emt 0:05:12]} 19. Bb5 {[%emt 0:02:03]} Ne8 {[%emt 0:02:07]} 20. Rd5 {[%emt 0:08:16]} Nc7 {[%emt 0:09:54]} 21. Rxc5 {[%emt 0:00:48]} Nxb5 {[%emt 0:00:09]} 22. Rxb5 {[%emt 0:00:06]} Nc6 {[%emt 0:00:20]} 23. Rd1 {[%emt 0:01:47]} a4 {[%emt 0:00:53]} 24. bxa4 {[%emt 0:07:45]} Rxa4 {[%emt 0:00:42]} 25. Rd7 {[%emt 0:07:32]} Re8 {[%emt 0:04:04]} 26. Nd3 {[%emt 0:20:57]} Ra1+ {[%emt 0:13:18]} 27. Kd2 {[%emt 0:00:22]} Rh1 {[%emt 0:02:48]} 28. h4 {[%emt 0:08:34]} Rb8 {[%emt 0:09:37]} 29. Rxb8 {[%emt 0:03:17]} Nxb8 {[%emt 0:00:10]} 30. Rb7 {[%emt 0:05:02]} Nc6 {[%emt 0:03:08]} 31. Nxb4 {[%emt 0:01:19]} Rh2+ {[%emt 0:02:28]} 32. Kc3 {[%emt 0:04:03]} Nxb4 {[%emt 0:00:44]} 33. Rxb4 {[%emt 0:01:03]} Rxh4 {[%emt 0:00:21]} 34. Rd4 {[%emt 0:00:17]} Kf6 {[%emt 0:01:51]} 35. b4 {[%emt 0:00:23]} Kg5 {[%emt 0:01:56]} 36. b5 {[%emt 0:00:29]} Rh3 {[%emt 0:16:05]} 37. Rd3 {[%emt 0:17:01]} Kf4 {[%emt 0:00:30]} 38. b6 {[%emt 0:00:30]} Rh1 {[%emt 0:00:30]} 39. Kb2 {[%emt 0:00:30]} h5 {[%emt 0:00:30]} 40. b7 {[%emt 0:00:30]} hxg4 {[%emt 0:00:30]} 41. b8=Q+ {[%emt 0:00:30]} Kg5 {[%emt 0:00:30]} 42. Qg3 {[%emt 0:00:30]} f5 {[%emt 0:00:00]} 43. exf5 {[%emt 0:00:00]} gxf5 {[%emt 0:00:00]} 44. fxg4 {[%emt 0:00:00]} fxg4 {[%emt 0:00:00]} 45. Rd5+ {[%emt 0:00:00]} 1-0